[Event "15th Chennai GM Open 2025"]
[Site "Chennai"]
[Date "2025.01.06"]
[Round "7.14"]
[White "Sarveshwaran V"]
[Black "Venkatesh, M.R."]
[Result "0-1"]
[ECO "B61"]
[WhiteElo "2150"]
[BlackElo "2362"]
[Annotator "TA"]
[PlyCount "80"]
[EventDate "2025.01.02"]
[EventType "swiss"]
[EventCountry "IND"]
[SourceTitle "playchess.com"]
[Source "ChessBase"]
[SourceQuality "1"]
[TimeControl "5400+30"]

{[%evp 13,80,45,55,18,20,20,42,0,13,0,13,14,14,23,47,43,63,59,62,75,79,59,70,85,92,97,88,91,98,79,77,80,82,61,65,65,91,75,127,62,66,62,77,41,107,37,72,37,37,37,37,37,39,37,37,37,42,37,37,21,26,26,27,25,25,22,54,11,39]} 1. e4 {[%emt 0:00:02]} c5 {[%emt 0:01:43]} 2. Nf3 {[%emt 0:00:08]} Nc6 {[%emt 0:00:05]} 3. d4 {[%emt 0:00:05]} cxd4 {[%emt 0:00:05]} 4. Nxd4 {[%emt 0:00:06]} Nf6 {[%emt 0:00:04]} 5. Nc3 {[%emt 0:00:07]} d6 {[%emt 0:00:04]} 6. Bg5 {[%emt 0:00:07]} Bd7 {[%emt 0:00:05]} 7. Qd2 {[%emt 0:00:58]} Rc8 {[%emt 0:00:15]} 8. Nxc6 {[%emt 0:00:30]} (8. O-O-O Nxd4 9. Qxd4 Qa5 10. Be3) 8... Bxc6 {[%emt 0:01:56]} 9. f3 {[%emt 0:00:07]} a6 {[%emt 0:04:24]} 10. Bd3 {[%emt 0:06:58]} e6 {[%emt 0:01:33]} 11. O-O-O {[%emt 0:07:25]} Be7 {[%emt 0:02:04]} 12. Kb1 {[%emt 0:03:00]} b5 {[%emt 0:05:11]} 13. h4 {[%emt 0:00:22]} Qb6 {[%emt 0:09:30]} 14. Ne2 {[%emt 0:04:41]} b4 {[%emt 0:09:45]} 15. Be3 {[%emt 0:02:38]} Qb7 {[%emt 0:00:06]} 16. Nd4 {[%emt 0:00:14]} Nd7 {[%emt 0:04:53]} 17. Qe2 {[%emt 0:12:28]} Nc5 {[%emt 0:08:59]} 18. Nxc6 {[%emt 0:08:11]} Rxc6 {[%emt 0:02:23]} 19. Bxc5 {[%emt 0:01:02]} Rxc5 {[%emt 0:02:07]} 20. Bxa6 {[%emt 0:06:59]} Qc6 {[%emt 0:28:20] [#]} 21. Rd4 $1 {[%emt 0:05:52]} Ra5 {[%emt 0:00:00]} 22. Bc4 {[%emt 0:03:47]} Qc5 {[%emt 0:00:00]} 23. Rdd1 {[%emt 0:19:45]} O-O {[%emt 0:02:26]} 24. f4 {[%emt 0:00:00] Dodges Qe5} h5 {[%emt 0:04:33]} 25. Bb3 {[%emt 0:00:00]} Rc8 {[%emt 0:01:13] [#]} ({Black should play} 25... Bf6) 26. g3 {[%emt 0:03:19]} (26. Rhf1 $1 $16) 26... Bf6 $14 {[%emt 0:00:44]} 27. Qd3 {[%emt 0:00:28]} Rc6 {[%emt 0:01:45]} 28. Rhe1 {[%emt 0:01:00]} (28. e5 dxe5 29. f5 e4 30. Qxe4 Qe5 31. Qxe5 Rxe5 32. fxe6 fxe6 33. Rhg1) 28... Ra8 {[%emt 0:07:15]} (28... g6 $14) 29. Qe3 {[%emt 0:04:07]} ({White should play} 29. Qe2 $16) 29... Ra5 {[%emt 0:00:45]} 30. Qxc5 {[%emt 0:00:21]} (30. Qf3 {with more complications.} Rc8 31. Qd3 Rd8 32. Rf1) 30... Raxc5 {[%emt 0:00:07]} 31. Rd3 {[%emt 0:01:14]} Ra5 {[%emt 0:01:54]} 32. Red1 {[%emt 0:01:38]} Raa6 {[%emt 0:00:04]} 33. Re3 {[%emt 0:02:45]} Ra5 {[%emt 0:00:23]} 34. Rde1 {[%emt 0:01:15]} Rcc5 {[%emt 0:00:29]} 35. Rc1 {[%emt 0:01:10]} Kf8 {[%emt 0:00:57]} 36. c3 {[%emt 0:00:47]} bxc3 {[%emt 0:00:39]} 37. bxc3 {[%emt 0:00:17]} Ra6 {[%emt 0:01:29]} 38. Kc2 {[%emt 0:03:47]} Rac6 {[%emt 0:00:34][%cal Of6d4]} 39. Kd2 {[%emt 0:00:18]} d5 {[%emt 0:00:30]} 40. e5 {[%emt 0:01:58]} Bd8 {[%emt 0:00:03]} 0-1

[Event "15th Chennai GM Open 2025"]
[Site "Chennai"]
[Date "2025.01.06"]
[Round "7.15"]
[White "Anadkat Kartavya"]
[Black "Podolchenko, Evgeniy"]
[Result "1-0"]
[ECO "B12"]
[WhiteElo "2139"]
[BlackElo "2346"]
[Annotator "TA"]
[PlyCount "61"]
[EventDate "2025.01.02"]
[EventType "swiss"]
[EventCountry "IND"]
[SourceTitle "playchess.com"]
[Source "ChessBase"]
[SourceQuality "1"]
[TimeControl "5400+30"]

{[%evp 9,61,-27,-22,-74,-51,-59,-57,-44,-54,-54,-70,-56,-42,-57,-48,-50,-42,-52,-52,-49,-31,-59,-34,-42,0,-56,-7,-22,-17,-48,0,0,0,0,153,-14,489,556,600,604,501,550,602,603,592,550,610,607,594,581,588,587,757,750]} 1. e4 {[%emt 0:03:31]} c6 {[%emt 0:00:08]} 2. d4 {[%emt 0:00:06]} d5 {[%emt 0:00:04]} 3. e5 {[%emt 0:00:05]} Bf5 {[%emt 0:00:06]} 4. h4 {[%emt 0:00:05]} h5 {[%emt 0:00:04]} 5. Bg5 {[%emt 0:00:03]} Qb6 {[%emt 0:01:05]} 6. Bd3 {[%emt 0:00:01]} (6. b3 $11 {keeps the balance.}) 6... Qxd4 {[%emt 0:01:24]} 7. Nf3 {[%emt 0:00:18]} Qg4 $1 {[%emt 0:00:06]} 8. Bxf5 {[%emt 0:00:03]} Qxf5 {[%emt 0:00:06]} 9. c4 {[%emt 0:00:01]} Qe4+ {[%emt 0:06:12]} 10. Be3 {[%emt 0:00:03]} e6 {[%emt 0:01:04]} (10... dxc4 11. Nbd2 Qd5 12. Qc2) 11. Nbd2 {[%emt 0:01:17]} Qd3 {[%emt 0:05:08]} 12. cxd5 {[%emt 0:02:54]} exd5 {[%emt 0:09:39]} 13. Rc1 {[%emt 0:00:06]} Bb4 {[%emt 0:02:29] Prevents Rc3} 14. a3 {[%emt 0:00:06]} Bxd2+ {[%emt 0:04:53]} 15. Bxd2 {[%emt 0:00:22]} Nd7 {[%emt 0:08:01]} 16. Rc3 {[%emt 0:04:45]} Qa6 {[%emt 0:03:19]} 17. Bg5 {[%emt 0:26:33]} ({White should try} 17. b4 $1 $11) 17... f6 {[%emt 0:07:54]} (17... Ne7 $15) 18. exf6 $11 {[%emt 0:02:18]} gxf6 {[%emt 0:00:02]} 19. Re3+ {[%emt 0:01:12]} Kf8 {[%emt 0:08:45]} (19... Ne7 $15) 20. Qb1 {[%emt 0:24:24]} Ne7 $1 {[%emt 0:03:47][%cal Oc6c5] Prevents Qf5.} (20... fxg5 $2 21. Qf5+ Ngf6 22. Ne5 (22. hxg5 d4 $18) 22... Nxe5 23. Rxe5 Qa5+ 24. Kf1 Qb5+ 25. Kg1 $18) 21. Bf4 {[%emt 0:02:57] Bd6 would now be deadly.} Kf7 $2 {[%emt 0:05:18] [#] Black is weak on the dark squares} ({Black should try} 21... Re8 $11) 22. Rh3 $2 {[%emt 0:02:38] White is more active.} (22. Ng5+ $1 $16 fxg5 23. Bd6) 22... Rae8 $2 {[%emt 0:02:11][%mdl 8192] [#]} (22... c5 $1 $11 {and Black stays safe.}) 23. Ng5+ $1 $18 {[%emt 0:05:20][%mdl 512]} fxg5 {[%emt 0:11:25]} 24. Bxg5 {[%emt 0:00:23] White wants to mate with Rhf3+.} Nf6 {[%emt 0:05:14] and ...Ne4 should not be overlooked} 25. Rhf3 {[%emt 0:04:22]} c5 {[%emt 0:03:08]} 26. Bxf6 {[%emt 0:01:56]} Qxf6 {[%emt 0:00:13]} 27. Kf1 {[%emt 0:01:44]} Qxf3 {[%emt 0:01:35]} 28. Rxf3+ {[%emt 0:00:18]} Ke6 {[%emt 0:00:01]} 29. Qe1+ {[%emt 0:01:43]} Kd7 {[%emt 0:00:36]} 30. Qa5 {[%emt 0:00:06]} Rh6 {[%emt 0:02:57]} 31. Qxa7 {[%emt 0:02:36]} 1-0

[Event "15th Chennai GM Open 2025"]
[Site "Chennai"]
[Date "2025.01.07"]
[Round "8.1"]
[White "Iniyan, Pa"]
[Black "Sammed Jaykumar, Shete"]
[Result "1-0"]
[ECO "D34"]
[WhiteElo "2508"]
[BlackElo "2379"]
[Annotator "TA"]
[PlyCount "99"]
[EventDate "2025.01.02"]
[EventType "swiss"]
[EventCountry "IND"]
[SourceTitle "playchess.com"]
[Source "ChessBase"]
[SourceQuality "1"]
[TimeControl "5400+30"]

{[%evp 21,99,38,52,42,51,49,47,28,54,48,41,32,42,37,95,0,0,0,0,0,35,0,18,29,95,92,95,93,105,91,105,112,189,199,185,191,175,127,144,135,143,137,162,180,168,168,177,174,171,178,186,65,56,56,56,56,56,56,56,8,8,8,8,8,8,9,95,8,18,8,8,8,428,365,444,340,29976,29977,29989,29990]} 1. d4 {[%emt 0:05:58]} d5 {[%emt 0:00:15]} 2. c4 {[%emt 0:00:08]} e6 {[%emt 0:00:13]} 3. Nf3 {[%emt 0:00:16]} c5 {[%emt 0:00:48]} 4. cxd5 {[%emt 0:00:12]} exd5 {[%emt 0:00:06]} 5. g3 {[%emt 0:00:08]} Nc6 {[%emt 0:00:33]} 6. Bg2 {[%emt 0:00:08]} c4 {[%emt 0:00:46]} 7. O-O {[%emt 0:01:00]} Be7 {[%emt 0:00:19]} 8. Nc3 {[%emt 0:20:30]} Nf6 {[%emt 0:00:21]} 9. Ne5 {[%emt 0:00:05]} O-O {[%emt 0:00:49]} 10. b3 {[%emt 0:03:25]} cxb3 {[%emt 0:00:40]} 11. Nxc6 {[%emt 0:03:01]} bxc6 {[%emt 0:00:34]} 12. axb3 {[%emt 0:00:05]} Bf5 {[%emt 0:10:04]} 13. Ba3 {[%emt 0:04:38]} Rb8 {[%emt 0:01:28]} 14. Na4 {[%emt 0:01:15]} h5 {[%emt 0:15:49][%cal Bh7h5,Bh5h4,Bh4h3][%mdl 32]} 15. Bxe7 {[%emt 0:02:12]} Qxe7 {[%emt 0:01:28]} 16. Nc5 {[%emt 0:00:03]} h4 {[%emt 0:01:53]} 17. Qd2 {[%emt 0:02:43]} Rfe8 {[%emt 0:09:41]} ({Better is} 17... h3 $14 18. Bf3 Be4) 18. Ra2 {[%emt 0:01:03]} (18. gxh4 $6 Qxe2 19. Qf4 Qg4 20. Qxg4 Bxg4 $11) (18. Qf4 $16 Bg4 19. f3) 18... h3 $1 $11 {[%emt 0:00:38]} 19. Bh1 {[%emt 0:01:33]} Be4 {[%emt 0:01:55]} 20. f3 {[%emt 0:04:04]} Bf5 {[%emt 0:02:07][%cal Oa7a5]} 21. Kf2 {[%emt 0:00:09]} (21. Re1 {simplifies} Nd7 22. Rxa7 Ra8 23. Rxa8 Rxa8 24. b4) 21... Rb5 {[%emt 0:03:47][%cal Oa7a5]} 22. Rfa1 {[%emt 0:07:07]} Rxc5 {[%emt 0:22:01]} (22... Ra8 $11 {keeps the balance.}) 23. dxc5 $16 {[%emt 0:00:33]} Qxc5+ {[%emt 0:01:29]} 24. e3 {[%emt 0:00:09]} Rb8 {[%emt 0:03:39]} 25. Ra5 {[%emt 0:08:58]} (25. Rxa7 Rxb3 26. R7a2 Kh7 $15) 25... Qd6 {[%emt 0:03:47]} 26. Qc3 {[%emt 0:01:45]} (26. Rxa7 Rxb3 27. Kg1 Qe5 $15) 26... Qb4 {[%emt 0:05:52]} (26... Rb6 $16) 27. Qxb4 $18 {[%emt 0:00:41]} (27. Qxc6 $2 Qd2+ (27... Qxb3 $2 28. R5a2 $19) 28. Kg1 Qxe3+ 29. Kf1 Bd3#) 27... Rxb4 {[%emt 0:00:02]} 28. g4 {[%emt 0:02:40]} (28. Rxa7 $6 Rxb3 29. g4 Be6 $14) 28... Be6 {[%emt 0:01:37]} 29. Rxa7 {[%emt 0:04:47]} (29. g5 $18 Ne8 30. Rxa7) 29... Rxb3 {[%emt 0:00:29]} 30. R7a3 {[%emt 0:00:08]} Rb2+ {[%emt 0:01:19]} 31. Kg3 {[%emt 0:00:08]} g5 {[%emt 0:00:35]} 32. Kxh3 {[%emt 0:14:37]} d4 {[%emt 0:00:05]} 33. Kg3 $1 {[%emt 0:00:05]} (33. exd4 $6 Nh5 $14) 33... Nd5 {[%emt 0:01:30]} 34. f4 $1 {[%emt 0:00:48]} (34. exd4 $6 Nf4 $14) 34... Nxe3 {[%emt 0:00:53]} 35. fxg5 {[%emt 0:00:06]} (35. Bxc6 gxf4+ 36. Kxf4 Rxh2 $14) 35... Kg7 {[%emt 0:02:45] [#]} 36. Rxe3 {[%emt 0:03:29]} dxe3 $14 {[%emt 0:00:07]} 37. Bxc6 $18 {[%emt 0:00:06][%mdl 4096] Endgame KRB-KRB. White is a pawn up.} e2 {[%emt 0:07:24]} 38. Bf3 $1 {[%emt 0:00:09]} Bb3 {[%emt 0:00:31]} 39. Re1 $1 {[%emt 0:02:15]} Bd1 {[%emt 0:00:10]} 40. h4 {[%emt 0:00:22]} (40. Be4 $14) 40... Rb3 $11 {[%emt 0:00:48]} 41. Kf4 {[%emt 0:00:51]} Rb4+ {[%emt 0:01:05]} 42. Be4 {[%emt 0:00:05]} Ra4 {[%emt 0:00:34]} 43. h5 {[%emt 0:00:58]} Ra3 {[%emt 0:00:16] [#]} (43... Kg8 $11) 44. h6+ {[%emt 0:03:12]} ({White should try} 44. g6 $1 $16 {[%cal Rg6f7]}) 44... Kg8 {[%emt 0:00:07]} 45. g6 {[%emt 0:01:01]} fxg6 {[%emt 0:00:19]} 46. Bxg6 {[%emt 0:00:06]} Ra4+ $2 {[%emt 0:01:13][%mdl 8192] [#]} (46... Ra6 $1 $11 47. Kg5 Ra5+ 48. Bf5 Ra8) 47. Be4 $1 $18 {[%emt 0:00:24]} Ra5 {[%emt 0:00:38]} 48. g5 {[%emt 0:00:09][%cal Bg4g5,Bg5g6][%mdl 32] Threatens to win with Rh1.} Ra6 $2 {[%emt 0:00:23]} (48... Ra4 $18 49. g6 Rxe4+ 50. Kxe4 Bc2+ 51. Ke5 Bxg6) 49. g6 {[%emt 0:04:34]} Rf6+ {[%emt 0:00:16]} 50. Ke5 {[%emt 0:00:30]} 1-0

[Event "15th Chennai GM Open 2025"]
[Site "Chennai"]
[Date "2025.01.07"]
[Round "8.2"]
[White "Aronyak Ghosh"]
[Black "Madhvendra Pratap Sharma"]
[Result "1-0"]
[ECO "D32"]
[WhiteElo "2544"]
[BlackElo "2281"]
[Annotator "TA"]
[PlyCount "77"]
[EventDate "2025.01.02"]
[EventType "swiss"]
[EventCountry "IND"]
[SourceTitle "playchess.com"]
[Source "ChessBase"]
[SourceQuality "1"]
[TimeControl "5400+30"]

{[%evp 17,77,63,59,61,61,59,106,114,115,104,137,134,154,104,92,108,93,95,138,143,172,149,151,151,151,149,157,108,196,212,198,166,173,178,213,220,218,213,476,472,514,508,488,497,467,391,497,501,810,799,1123,1097,1259,1214,29977,29978,29978,29979,29983,29984,29972,12079]} 1. d4 {[%emt 0:04:08]} e6 {[%emt 0:00:09]} 2. c4 {[%emt 0:00:26]} d5 {[%emt 0:00:06]} 3. Nc3 {[%emt 0:00:04]} c5 {[%emt 0:00:05]} 4. cxd5 {[%emt 0:01:57]} cxd4 {[%emt 0:00:06]} 5. Qa4+ {[%emt 0:00:05]} Bd7 {[%emt 0:00:07]} 6. Qxd4 {[%emt 0:00:04]} exd5 {[%emt 0:00:04]} 7. Qxd5 {[%emt 0:00:04]} Nc6 {[%emt 0:00:06]} 8. Nf3 {[%emt 0:00:05]} Nf6 {[%emt 0:00:04]} 9. Qd1 {[%emt 0:00:05]} Bc5 {[%emt 0:00:04]} 10. a3 {[%emt 0:00:06]} Qe7 {[%emt 0:05:51]} 11. Bg5 {[%emt 0:00:34]} Bg4 {[%emt 0:35:07]} (11... h6 $14 12. Bxf6 (12. Nd5 Bxf2+ 13. Kxf2 Qc5+ 14. e3 Ne4+ 15. Ke1 hxg5 $11) 12... Qxf6) 12. e3 $16 {[%emt 0:07:24]} Rd8 {[%emt 0:01:50]} 13. Qc2 {[%emt 0:04:41]} Bxf3 {[%emt 0:11:15]} 14. gxf3 {[%emt 0:01:13]} Bb6 {[%emt 0:02:07] [#]} 15. Qe4 {[%emt 0:12:12]} Nxe4 {[%emt 0:03:14]} 16. Bxe7 {[%emt 0:00:13]} Kxe7 {[%emt 0:01:18]} 17. fxe4 {[%emt 0:00:09]} Bc5 {[%emt 0:04:51]} 18. Rc1 {[%emt 0:00:31]} Kf8 {[%emt 0:01:10]} 19. Na4 {[%emt 0:09:49]} Bd6 {[%emt 0:07:18]} 20. Nc5 {[%emt 0:01:29]} Bxc5 {[%emt 0:04:18]} 21. Rxc5 {[%emt 0:00:09]} Ke7 {[%emt 0:01:23]} 22. e5 {[%emt 0:03:21]} ({White should try} 22. Ke2) 22... Nb8 {[%emt 0:03:53]} (22... Rd7 $16) 23. Bh3 $18 {[%emt 0:05:32]} Na6 {[%emt 0:02:18] Repels Rc7+} 24. Rc2 {[%emt 0:00:16]} Rd5 {[%emt 0:00:57]} 25. f4 {[%emt 0:00:18]} Rc5 {[%emt 0:03:42]} 26. Rxc5 {[%emt 0:01:01]} Nxc5 {[%emt 0:00:01][%mdl 4096] Endgame KRB-KRN. White is a pawn up.} 27. Ke2 {[%emt 0:00:11]} Na4 $2 {[%emt 0:04:22]} (27... Re8 {might work better.} 28. Rc1 Ne6 29. Bxe6 Kxe6) 28. Rc1 {[%emt 0:00:50] Rc7+ would now be deadly.} Rb8 {[%emt 0:00:35]} 29. Rc7+ {[%emt 0:00:15]} Kf8 {[%emt 0:00:26]} 30. b3 {[%emt 0:01:20][%cal Bb2b3,Bb3b4][%mdl 32]} Nb6 {[%emt 0:00:05]} 31. Bg2 {[%emt 0:00:45] Inhibits Nd5.} Rd8 {[%emt 0:00:54]} 32. Rxb7 {[%emt 0:01:00]} Nd7 {[%emt 0:00:03]} (32... Nc8 $142 33. a4 h5) 33. Rxa7 {[%emt 0:01:06]} Nc5 {[%emt 0:00:01]} 34. b4 {[%emt 0:00:21]} Nb3 {[%emt 0:00:19]} 35. Ra8 {[%emt 0:00:07]} Rxa8 {[%emt 0:00:06]} 36. Bxa8 {[%emt 0:00:02]} Nc1+ {[%emt 0:00:09]} 37. Kd2 {[%emt 0:00:08]} Nb3+ {[%emt 0:00:03]} 38. Kc2 {[%emt 0:00:04]} Na1+ {[%emt 0:00:04]} 39. Kb2 {[%emt 0:00:02]} 1-0

[Event "15th Chennai GM Open 2025"]
[Site "Chennai"]
[Date "2025.01.07"]
[Round "8.3"]
[White "Shahil Dey"]
[Black "Siddharth, Jagadeesh"]
[Result "1/2-1/2"]
[ECO "A30"]
[WhiteElo "2374"]
[BlackElo "2515"]
[Annotator "TA"]
[PlyCount "60"]
[EventDate "2025.01.02"]
[EventType "swiss"]
[EventCountry "IND"]
[SourceTitle "playchess.com"]
[Source "ChessBase"]
[SourceQuality "1"]
[TimeControl "5400+30"]

{[%evp 21,60,18,16,9,16,15,14,0,3,0,0,0,9,0,8,0,0,0,38,26,56,43,47,28,60,50,46,30,25,29,32,17,42,45,64,25,62,38,38,23,37]} 1. Nf3 {[%emt 0:05:15]} Nf6 {[%emt 0:00:36]} 2. b3 {[%emt 0:00:07]} b6 {[%emt 0:00:06]} 3. Bb2 {[%emt 0:00:13]} Bb7 {[%emt 0:00:05]} 4. g3 {[%emt 0:01:10]} e6 {[%emt 0:00:07]} 5. Bg2 {[%emt 0:00:04]} Be7 {[%emt 0:00:04]} 6. O-O {[%emt 0:00:06]} O-O {[%emt 0:00:05]} 7. c4 {[%emt 0:00:03]} c5 {[%emt 0:00:07]} 8. d4 {[%emt 0:02:33]} cxd4 {[%emt 0:00:05]} 9. Nxd4 {[%emt 0:00:05]} Qc8 {[%emt 0:03:22]} 10. Nc3 {[%emt 0:01:14]} Bxg2 {[%emt 0:00:09]} 11. Kxg2 {[%emt 0:00:04]} Qb7+ {[%emt 0:00:08]} 12. Kg1 {[%emt 0:01:02]} Na6 {[%emt 0:01:12][%cal Bb8a6,Ba6c5,Bc5e4][%mdl 32]} 13. Qd3 {[%emt 0:08:19]} Nc5 {[%emt 0:08:32]} 14. Qf3 {[%emt 0:02:01] The position is equal.} Nfe4 {[%emt 0:00:08]} 15. Nxe4 {[%emt 0:04:32]} Nxe4 {[%emt 0:00:06]} 16. Nb5 {[%emt 0:15:34]} f5 {[%emt 0:01:29]} 17. Nc3 {[%emt 0:01:32]} Bf6 {[%emt 0:02:21]} 18. Rab1 {[%emt 0:00:34]} (18. Qe3 {is interesting.} Bxc3 19. Bxc3 f4 20. Qd4) 18... Bxc3 {[%emt 0:25:31]} 19. Bxc3 {[%emt 0:00:05]} Qc6 {[%emt 0:00:06][%cal Of5f4]} 20. Rbc1 {[%emt 0:04:41]} Nxc3 {[%emt 0:12:27]} 21. Qxc3 {[%emt 0:01:00]} f4 {[%emt 0:03:20]} 22. Rcd1 {[%emt 0:01:59]} f3 {[%emt 0:00:32]} 23. exf3 {[%emt 0:00:07]} Rxf3 {[%emt 0:00:04]} 24. Rd3 {[%emt 0:00:12]} Raf8 {[%emt 0:00:06]} 25. Rxf3 {[%emt 0:00:12]} Rxf3 $11 {[%emt 0:00:04] KQR-KQR} 26. Qe5 {[%emt 0:00:11]} Rf8 {[%emt 0:00:36]} 27. Rd1 {[%emt 0:00:20]} h6 {[%emt 0:00:15]} 28. Rd2 {[%emt 0:00:07] White is more active.} Kh7 {[%emt 0:00:07][%cal Od7d5]} 29. Qd4 {[%emt 0:00:07]} Rf7 {[%emt 0:00:04]} 30. Qd3+ {[%emt 0:00:04]} Kg8 {[%emt 0:00:03] Weighted Error Value: White=0.11 (very precise) /Black=0.12 (very precise) .  Inaccurate:     	White=1     	Black=4      OK:         	White=5     	Black=8} 1/2-1/2

[Event "15th Chennai GM Open 2025"]
[Site "Chennai"]
[Date "2025.01.07"]
[Round "8.4"]
[White "Mohamed Anees M"]
[Black "Das, Sayantan"]
[Result "1/2-1/2"]
[ECO "B13"]
[WhiteElo "2334"]
[BlackElo "2434"]
[Annotator "TA"]
[PlyCount "107"]
[EventDate "2025.01.02"]
[EventType "swiss"]
[EventCountry "IND"]
[SourceTitle "playchess.com"]
[Source "ChessBase"]
[SourceQuality "1"]
[TimeControl "5400+30"]

{[%evp 11,107,21,23,15,33,10,50,22,30,23,27,17,16,13,20,21,23,22,25,13,9,10,14,2,11,0,0,0,0,0,0,0,0,0,0,0,0,-3,0,0,0,0,0,0,0,0,0,0,0,-21,0,0,0,0,0,-14,0,0,0,-8,0,0,0,0,0,0,0,0,0,0,0,0,0,0,0,0,0,0,0,0,0,0,0,0,0,0,0,0,0,0,24,0,112,72,80,0,70,59]} 1. e4 {[%emt 0:00:03]} c6 {[%emt 0:03:50]} 2. d4 {[%emt 0:00:09]} d5 {[%emt 0:00:06]} 3. exd5 {[%emt 0:00:05]} cxd5 {[%emt 0:00:08]} 4. Bd3 {[%emt 0:00:06]} Nf6 {[%emt 0:00:42]} 5. c3 {[%emt 0:00:14]} Bg4 {[%emt 0:00:48]} 6. Qb3 {[%emt 0:00:10]} Qc7 {[%emt 0:00:09]} 7. h3 {[%emt 0:00:06]} Bh5 {[%emt 0:00:47]} 8. Ne2 {[%emt 0:00:12]} Bxe2 {[%emt 0:00:43]} 9. Bxe2 {[%emt 0:00:06][%cal Oc1f4]} Nc6 {[%emt 0:02:12][%cal Oc6d4]} 10. O-O {[%emt 0:03:20][%cal Oc1f4]} Rc8 {[%emt 0:01:59]} 11. Nd2 {[%emt 0:04:31]} e6 {[%emt 0:00:35]} 12. Nf3 {[%emt 0:01:47]} Bd6 {[%emt 0:00:15]} 13. Bd3 {[%emt 0:01:52]} O-O {[%emt 0:05:04]} 14. Re1 {[%emt 0:02:40]} a6 {[%emt 0:02:43]} 15. a3 {[%emt 0:01:09]} h6 {[%emt 0:12:42]} 16. Qd1 {[%emt 0:05:17]} b5 {[%emt 0:04:16]} 17. Qe2 {[%emt 0:01:14]} Na5 {[%emt 0:07:41]} 18. Ne5 {[%emt 0:04:36]} Nb3 {[%emt 0:05:32]} 19. Rb1 {[%emt 0:00:24]} Bxe5 {[%emt 0:01:03]} 20. dxe5 {[%emt 0:02:43]} Nxc1 {[%emt 0:00:58]} 21. Rbxc1 {[%emt 0:00:05]} Nd7 {[%emt 0:00:08]} 22. Rcd1 {[%emt 0:03:05][%cal Bc1d1,Bd1d4,Bd4g4,Bg4g5][%mdl 32]} g6 {[%emt 0:02:57]} 23. Bb1 {[%emt 0:04:18]} Kg7 {[%emt 0:02:53]} 24. Rd4 {[%emt 0:17:06]} Qb6 {[%emt 0:09:03]} 25. Bd3 {[%emt 0:01:30]} Nc5 {[%emt 0:02:18]} 26. Bc2 {[%emt 0:03:08]} Qc7 {[%emt 0:02:12]} 27. Rg4 {[%emt 0:03:52]} Qe7 {[%emt 0:01:40]} 28. h4 {[%emt 0:03:19]} h5 {[%emt 0:03:56]} 29. Rg5 {[%emt 0:05:03]} Rh8 {[%emt 0:01:22]} 30. f4 {[%emt 0:12:41] [#]} Ne4 $1 {[%emt 0:04:03]} 31. Bxe4 {[%emt 0:00:52]} dxe4 {[%emt 0:00:05]} 32. Qxe4 {[%emt 0:01:35][%cal Of4f5]} Rc4 {[%emt 0:03:05]} 33. Qe3 {[%emt 0:02:56]} Rd8 {[%emt 0:02:06][%mdl 1024] Black has compensation.} 34. Rf1 {[%emt 0:02:40]} a5 {[%emt 0:08:56]} 35. Qf2 {[%emt 0:02:59]} a4 {[%emt 0:06:36]} 36. Rg3 {[%emt 0:01:01]} Rc5 {[%emt 0:00:45][%cal Oc5d5]} 37. Re3 {[%emt 0:02:35]} Rcd5 {[%emt 0:00:09]} 38. Re2 {[%emt 0:01:07] Wards off Rd2} R8d7 {[%emt 0:02:15]} 39. Kh2 {[%emt 0:00:30]} Rd3 {[%emt 0:00:25]} 40. Rg1 {[%emt 0:02:04]} Qd8 {[%emt 0:00:37]} 41. g3 {[%emt 0:01:20]} Qa8 {[%emt 0:01:16]} 42. Qg2 {[%emt 0:00:55]} Qc8 {[%emt 0:00:50]} 43. Qe4 {[%emt 0:03:51]} Qd8 {[%emt 0:01:19]} 44. Rgg2 {[%emt 0:00:43]} R7d5 {[%emt 0:00:16]} 45. Re3 {[%emt 0:01:21]} Rd1 {[%emt 0:00:29]} 46. Re1 {[%emt 0:00:30]} Rxe1 {[%emt 0:00:26]} 47. Qxe1 $11 {[%emt 0:00:07][%mdl 4096] Endgame. KQR-KQR} Rd1 {[%emt 0:00:18]} 48. Qe4 {[%emt 0:01:37]} Ra1 {[%emt 0:00:40]} 49. Qe2 {[%emt 0:00:36]} Qd5 {[%emt 0:00:20]} 50. Rg1 {[%emt 0:00:33]} Ra2 {[%emt 0:00:18]} 51. Rg2 {[%emt 0:00:24]} Qc5 {[%emt 0:00:40]} (51... Ra1 $11) 52. Qf2 {[%emt 0:00:12]} Qc6 {[%emt 0:01:00]} 53. Qe2 {[%emt 0:00:25]} (53. Qe1 $16) 53... Qd5 {[%emt 0:00:16]} (53... Qc5 $11) 54. Qd2 {[%emt 0:00:34] Weighted Error Value: White=0.07 (flawless) /Black=0.09 (flawless) .  Mistake:       	White=1     	Black=2      Inaccurate:     	White=2     	Black=1      OK:         	White=10    	Black=24} 1/2-1/2